[Event "Titled Tuesday Blitz August 23 Late 2022"]
[White "Hansen, Eric"]
[Black "Dilanyan, Grigor"]
[WhiteFideId "2606771"]
[BlackFideId "13303570"]
[WhiteElo "2568"]
[BlackElo "2264"]
[Result "1-0"]
[Round "03"]
[TimeControl "180+1"]
[Date "2022.08.23"]
[WhiteClock "0:00:40"]
[BlackClock "0:00:04"]

1. Nf3 {[%clk 0:03:00]}  Nc6 {[%clk 0:02:50]} 2. g3 {[%clk 0:03:01]}  g6 {[%clk 0:02:47]} 3. Bg2 {[%clk 0:03:01]}  Bg7 {[%clk 0:02:47]} 4. O-O {[%clk 0:03:01]}  e5 {[%clk 0:02:48]} 5. d3 {[%clk 0:02:54]}  Nge7 {[%clk 0:02:46]} 6. c4 {[%clk 0:02:54]}  d6 {[%clk 0:02:46]} 7. Nc3 {[%clk 0:02:54]}  h5 {[%clk 0:02:45]} 8. h4 {[%clk 0:02:45]}  Bg4 {[%clk 0:02:44]} 9. Rb1 {[%clk 0:02:45]}  a5 {[%clk 0:02:44]} 10. a3 {[%clk 0:02:45]}  Qd7 {[%clk 0:02:41]} 11. b4 {[%clk 0:02:43]}  axb4 {[%clk 0:02:42]} 12. axb4 {[%clk 0:02:44]}  Bh3 {[%clk 0:02:41]} 13. b5 {[%clk 0:02:44]}  Nd8 {[%clk 0:02:39]} 14. b6 {[%clk 0:02:32]}  c6 {[%clk 0:02:34]} 15. Bxh3 {[%clk 0:02:26]}  Qxh3 {[%clk 0:02:34]} 16. Ne4 {[%clk 0:02:27]}  Qd7 {[%clk 0:02:18]} 17. c5 {[%clk 0:02:27]}  d5 {[%clk 0:02:16]} 18. Nd6+ {[%clk 0:02:27]}  Kf8 {[%clk 0:02:17]} 19. e4 {[%clk 0:02:26]}  d4 {[%clk 0:02:10]} 20. Qb3 {[%clk 0:02:18]}  Ne6 {[%clk 0:02:09]} 21. Ba3 {[%clk 0:02:17]}  Bf6 {[%clk 0:02:05]} 22. Bb4 {[%clk 0:02:12]}  Kg7 {[%clk 0:02:03]} 23. Ra1 {[%clk 0:02:13]}  Rhb8 {[%clk 0:01:54]} 24. Nc4 {[%clk 0:02:06]}  Qd8 {[%clk 0:00:38]} 25. Ncxe5 {[%clk 0:02:04]}  Rxa1 {[%clk 0:00:35]} 26. Rxa1 {[%clk 0:02:04]}  Ra8 {[%clk 0:00:32]} 27. Ra7 {[%clk 0:01:52]}  Rxa7 {[%clk 0:00:28]} 28. bxa7 {[%clk 0:01:53]}  Qa8 {[%clk 0:00:28]} 29. Nd7 {[%clk 0:01:46]}  Qxa7 {[%clk 0:00:25]} 30. e5 {[%clk 0:01:46]}  Bxe5 {[%clk 0:00:19]} 31. Ndxe5 {[%clk 0:01:41]}  Qa1+ {[%clk 0:00:20]} 32. Kg2 {[%clk 0:01:41]}  Nd5 {[%clk 0:00:20]} 33. Bd2 {[%clk 0:01:22]}  Nxc5 {[%clk 0:00:17]} 34. Qc4 {[%clk 0:01:23]}  Qa3 {[%clk 0:00:15]} 35. Qxd4 {[%clk 0:01:08]}  Kg8 {[%clk 0:00:14]} 36. Nc4 {[%clk 0:01:05]}  Qa7 {[%clk 0:00:12]} 37. Bh6 {[%clk 0:01:01]}  f6 {[%clk 0:00:10]} 38. Be3 {[%clk 0:01:00]}  b6 {[%clk 0:00:10]} 39. Ncd2 {[%clk 0:00:50]}  Qe7 {[%clk 0:00:10]} 40. Ne4 {[%clk 0:00:49]}  Ne6 {[%clk 0:00:06]} 41. Qc4 {[%clk 0:00:49]}  Qd7 {[%clk 0:00:04]} 42. Qxd5 {[%clk 0:00:45]}  Qxd5 {[%clk 0:00:04]} 43. Nxf6+ {[%clk 0:00:45]}  Kf7 {[%clk 0:00:05]} 44. Nxd5 {[%clk 0:00:45]}  cxd5 {[%clk 0:00:06]} 45. Bxb6 {[%clk 0:00:46]}  Kf6 {[%clk 0:00:06]} 46. Bd4+ {[%clk 0:00:43]}  Kf5 {[%clk 0:00:06]} 47. Be3 {[%clk 0:00:44]}  Kg4 {[%clk 0:00:05]} 48. Nd4 {[%clk 0:00:40]}  Ng7 {[%clk 0:00:04]} 49. f3# {[%clk 0:00:40]} 1-0


[Site "https://www.chess.com"]

[Event "Titled Tuesday Blitz August 23 Late 2022"]
[White "Hollan, Petr"]
[Black "Mitrabha, Guha"]
[WhiteFideId "360945"]
[BlackFideId "5057000"]
[WhiteElo "2284"]
[BlackElo "2499"]
[Result "0-1"]
[Round "03"]
[TimeControl "180+1"]
[Date "2022.08.23"]
[WhiteClock "0:00:02"]
[BlackClock "0:00:56"]

1. e4 {[%clk 0:02:59]}  e5 {[%clk 0:02:59]} 2. Nf3 {[%clk 0:02:59]}  Nc6 {[%clk 0:02:59]} 3. Bb5 {[%clk 0:02:59]}  a6 {[%clk 0:02:59]} 4. Ba4 {[%clk 0:02:59]}  Bc5 {[%clk 0:03:00]} 5. O-O {[%clk 0:02:59]}  Nge7 {[%clk 0:03:00]} 6. c3 {[%clk 0:02:59]}  Ba7 {[%clk 0:03:00]} 7. d4 {[%clk 0:02:59]}  Ng6 {[%clk 0:03:00]} 8. Re1 {[%clk 0:02:57]}  O-O {[%clk 0:02:59]} 9. h3 {[%clk 0:02:52]}  d6 {[%clk 0:02:53]} 10. Be3 {[%clk 0:02:51]}  Bd7 {[%clk 0:02:52]} 11. dxe5 {[%clk 0:02:40]}  Bxe3 {[%clk 0:02:50]} 12. Rxe3 {[%clk 0:02:39]}  dxe5 {[%clk 0:02:45]} 13. Nbd2 {[%clk 0:02:36]}  Qe7 {[%clk 0:02:44]} 14. b4 {[%clk 0:02:27]}  Rad8 {[%clk 0:02:41]} 15. Bxc6 {[%clk 0:02:17]}  Bxc6 {[%clk 0:02:41]} 16. Qe1 {[%clk 0:02:17]}  Nf4 {[%clk 0:02:39]} 17. Nb3 {[%clk 0:02:14]}  b6 {[%clk 0:02:34]} 18. Kh2 {[%clk 0:02:08]}  Qe6 {[%clk 0:02:27]} 19. Ng1 {[%clk 0:01:56]}  Rd6 {[%clk 0:02:25]} 20. Rd1 {[%clk 0:01:52]}  Rfd8 {[%clk 0:02:24]} 21. Rxd6 {[%clk 0:01:52]}  Qxd6 {[%clk 0:02:25]} 22. g3 {[%clk 0:01:48]}  Ne6 {[%clk 0:02:25]} 23. Re2 {[%clk 0:01:46]}  Qd1 {[%clk 0:02:15]} 24. Qxd1 {[%clk 0:01:27]}  Rxd1 {[%clk 0:02:14]} 25. Rd2 {[%clk 0:01:27]}  Re1 {[%clk 0:02:10]} 26. f3 {[%clk 0:01:27]}  h5 {[%clk 0:02:10]} 27. h4 {[%clk 0:01:24]}  Re3 {[%clk 0:02:08]} 28. c4 {[%clk 0:01:12]}  Rc3 {[%clk 0:02:05]} 29. c5 {[%clk 0:01:00]}  bxc5 {[%clk 0:02:01]} 30. bxc5 {[%clk 0:00:57]}  Ba4 {[%clk 0:01:59]} 31. Rb2 {[%clk 0:00:47]}  Bxb3 {[%clk 0:01:56]} 32. axb3 {[%clk 0:00:47]}  Nxc5 {[%clk 0:01:56]} 33. b4 {[%clk 0:00:46]}  Nd3 {[%clk 0:01:57]} 34. Rd2 {[%clk 0:00:41]}  Nxb4 {[%clk 0:01:55]} 35. Rd8+ {[%clk 0:00:41]}  Kh7 {[%clk 0:01:55]} 36. Rd7 {[%clk 0:00:42]}  a5 {[%clk 0:01:55]} 37. f4 {[%clk 0:00:29]}  a4 {[%clk 0:01:53]} 38. Nh3 {[%clk 0:00:22]}  exf4 {[%clk 0:01:47]} 39. Ng5+ {[%clk 0:00:19]}  Kg6 {[%clk 0:01:28]} 40. gxf4 {[%clk 0:00:20]}  Rc5 {[%clk 0:01:08]} 41. Nxf7 {[%clk 0:00:16]}  a3 {[%clk 0:01:04]} 42. f5+ {[%clk 0:00:09]}  Kf6 {[%clk 0:01:03]} 43. Ng5 {[%clk 0:00:08]}  a2 {[%clk 0:00:58]} 44. Rf7+ {[%clk 0:00:04]}  Ke5 {[%clk 0:00:58]} 45. Re7+ {[%clk 0:00:02]}  Kf4 {[%clk 0:00:56]} 46. Nh3+ {[%clk 0:00:02]}  Kf3 {[%clk 0:00:55]} 47. Ng5+ {[%clk 0:00:02]}  Ke2 {[%clk 0:00:56]} 0-1


[Site "https://www.chess.com"]

[Event "Titled Tuesday Blitz August 23 Late 2022"]
[White "Korchmar, Vasiliy"]
[Black "Ibrahimli, Murad"]
[WhiteFideId "24131750"]
[BlackFideId "13410229"]
[WhiteElo "2370"]
[BlackElo "2109"]
[Result "0-1"]
[Round "03"]
[TimeControl "180+1"]
[Date "2022.08.23"]
[WhiteClock "0:00:02"]
[BlackClock "0:00:10"]

1. e4 {[%clk 0:03:00]}  c5 {[%clk 0:02:59]} 2. Nf3 {[%clk 0:03:00]}  d6 {[%clk 0:02:59]} 3. d4 {[%clk 0:03:01]}  cxd4 {[%clk 0:03:00]} 4. Nxd4 {[%clk 0:03:02]}  Nf6 {[%clk 0:03:01]} 5. Nc3 {[%clk 0:03:02]}  a6 {[%clk 0:03:01]} 6. f3 {[%clk 0:03:01]}  e6 {[%clk 0:02:55]} 7. Be3 {[%clk 0:02:59]}  h5 {[%clk 0:02:55]} 8. a4 {[%clk 0:02:42]}  Be7 {[%clk 0:02:54]} 9. Bc4 {[%clk 0:02:35]}  Qc7 {[%clk 0:02:51]} 10. Ba2 {[%clk 0:02:33]}  Nc6 {[%clk 0:02:51]} 11. Qe2 {[%clk 0:02:24]}  Bd7 {[%clk 0:02:51]} 12. Nxc6 {[%clk 0:02:17]}  bxc6 {[%clk 0:02:45]} 13. O-O {[%clk 0:02:08]}  a5 {[%clk 0:02:43]} 14. f4 {[%clk 0:02:05]}  Ng4 {[%clk 0:02:35]} 15. Kh1 {[%clk 0:02:01]}  Nxe3 {[%clk 0:02:33]} 16. Qxe3 {[%clk 0:02:02]}  Rb8 {[%clk 0:02:31]} 17. f5 {[%clk 0:01:56]}  e5 {[%clk 0:02:28]} 18. Bb3 {[%clk 0:01:45]}  Bf6 {[%clk 0:02:28]} 19. Rad1 {[%clk 0:01:44]}  h4 {[%clk 0:02:21]} 20. h3 {[%clk 0:01:42]}  Ke7 {[%clk 0:02:09]} 21. Rd3 {[%clk 0:01:42]}  Rhd8 {[%clk 0:02:07]} 22. Rfd1 {[%clk 0:01:40]}  Be8 {[%clk 0:02:08]} 23. Ne2 {[%clk 0:01:14]}  Rb4 {[%clk 0:02:05]} 24. Ng1 {[%clk 0:01:10]}  Qb6 {[%clk 0:02:05]} 25. Qe2 {[%clk 0:00:54]}  c5 {[%clk 0:02:03]} 26. Rc3 {[%clk 0:00:32]}  Bxa4 {[%clk 0:02:00]} 27. Bxa4 {[%clk 0:00:31]}  Rxa4 {[%clk 0:02:01]} 28. Nf3 {[%clk 0:00:17]}  Rb4 {[%clk 0:01:47]} 29. Nd2 {[%clk 0:00:15]}  a4 {[%clk 0:01:35]} 30. Nc4 {[%clk 0:00:14]}  Qa6 {[%clk 0:01:35]} 31. b3 {[%clk 0:00:12]}  axb3 {[%clk 0:01:32]} 32. cxb3 {[%clk 0:00:12]}  Bg5 {[%clk 0:00:48]} 33. Rcd3 {[%clk 0:00:06]}  Rxc4 {[%clk 0:00:44]} 34. bxc4 {[%clk 0:00:07]}  Qxc4 {[%clk 0:00:44]} 35. Qg4 {[%clk 0:00:03]}  Bf6 {[%clk 0:00:41]} 36. R3d2 {[%clk 0:00:01]}  Qb3 {[%clk 0:00:29]} 37. Rd3 {[%clk 0:00:01]}  Qb4 {[%clk 0:00:28]} 38. R3d2 {[%clk 0:00:01]}  c4 {[%clk 0:00:29]} 39. Rc2 {[%clk 0:00:01]}  Qb3 {[%clk 0:00:26]} 40. Qe2 {[%clk 0:00:02]}  Rc8 {[%clk 0:00:24]} 41. Rdc1 {[%clk 0:00:02]}  Bg5 {[%clk 0:00:13]} 42. Rxc4 {[%clk 0:00:03]}  Bxc1 {[%clk 0:00:13]} 43. Rxc8 {[%clk 0:00:02]}  Bf4 {[%clk 0:00:14]} 44. Qf1 {[%clk 0:00:02]}  Qb7 {[%clk 0:00:10]} 45. Rc4 {[%clk 0:00:02]}  d5 {[%clk 0:00:09]} 46. exd5 {[%clk 0:00:02]}  Qxd5 {[%clk 0:00:10]} 47. Rc7+ {[%clk 0:00:02]}  Kf6 {[%clk 0:00:10]} 0-1


[Site "https://www.chess.com"]

[Event "Titled Tuesday Blitz August 23 Late 2022"]
[White "Kowalski, Igor"]
[Black "Andreikin, Dmitry"]
[WhiteFideId "1172468"]
[BlackFideId "4158814"]
[WhiteElo "2376"]
[BlackElo "2736"]
[Result "1-0"]
[Round "03"]
[TimeControl "180+1"]
[Date "2022.08.23"]
[WhiteClock "0:00:11"]
[BlackClock "0:00:03"]

1. d4 {[%clk 0:03:00]}  Nf6 {[%clk 0:02:59]} 2. c4 {[%clk 0:03:01]}  g6 {[%clk 0:03:00]} 3. Nc3 {[%clk 0:03:01]}  Bg7 {[%clk 0:03:00]} 4. e4 {[%clk 0:03:02]}  O-O {[%clk 0:03:01]} 5. h3 {[%clk 0:03:02]}  d6 {[%clk 0:03:01]} 6. Nf3 {[%clk 0:03:03]}  Na6 {[%clk 0:02:59]} 7. Bg5 {[%clk 0:03:02]}  h6 {[%clk 0:02:57]} 8. Be3 {[%clk 0:03:02]}  e5 {[%clk 0:02:57]} 9. d5 {[%clk 0:03:03]}  Nc5 {[%clk 0:02:51]} 10. Nd2 {[%clk 0:03:03]}  a5 {[%clk 0:02:51]} 11. Be2 {[%clk 0:03:03]}  c6 {[%clk 0:02:45]} 12. g4 {[%clk 0:03:01]}  Bd7 {[%clk 0:02:33]} 13. a4 {[%clk 0:03:00]}  Qb6 {[%clk 0:02:31]} 14. Ra3 {[%clk 0:02:52]}  Rfc8 {[%clk 0:02:21]} 15. Rb3 {[%clk 0:02:38]}  Qc7 {[%clk 0:02:14]} 16. Bxc5 {[%clk 0:02:36]}  dxc5 {[%clk 0:02:14]} 17. Nf1 {[%clk 0:02:26]}  Ra6 {[%clk 0:02:05]} 18. Ne3 {[%clk 0:01:53]}  Rb6 {[%clk 0:02:04]} 19. h4 {[%clk 0:01:52]}  Ne8 {[%clk 0:02:03]} 20. dxc6 {[%clk 0:01:31]}  bxc6 {[%clk 0:01:45]} 21. Rxb6 {[%clk 0:01:30]}  Qxb6 {[%clk 0:01:45]} 22. Qxd7 {[%clk 0:01:31]}  Rd8 {[%clk 0:01:46]} 23. Qe7 {[%clk 0:01:29]}  Bf6 {[%clk 0:01:40]} 24. Ned5 {[%clk 0:01:20]}  cxd5 {[%clk 0:01:23]} 25. Nxd5 {[%clk 0:01:20]}  Qc6 {[%clk 0:01:00]} 26. Nxf6+ {[%clk 0:01:09]}  Qxf6 {[%clk 0:01:01]} 27. Qxc5 {[%clk 0:01:10]}  Rd4 {[%clk 0:00:51]} 28. Qxa5 {[%clk 0:00:47]}  Nd6 {[%clk 0:00:51]} 29. f3 {[%clk 0:00:39]}  Qf4 {[%clk 0:00:51]} 30. Qc3 {[%clk 0:00:21]}  Qg3+ {[%clk 0:00:27]} 31. Kf1 {[%clk 0:00:22]}  Qf4 {[%clk 0:00:16]} 32. Kg2 {[%clk 0:00:22]}  Rd2 {[%clk 0:00:16]} 33. Re1 {[%clk 0:00:22]}  h5 {[%clk 0:00:16]} 34. c5 {[%clk 0:00:19]}  Nxe4 {[%clk 0:00:15]} 35. fxe4 {[%clk 0:00:19]}  hxg4 {[%clk 0:00:16]} 36. c6 {[%clk 0:00:15]}  Qxe4+ {[%clk 0:00:14]} 37. Kf2 {[%clk 0:00:15]}  Qf4+ {[%clk 0:00:12]} 38. Kg2 {[%clk 0:00:14]}  Qe4+ {[%clk 0:00:09]} 39. Kg1 {[%clk 0:00:14]}  Rxe2 {[%clk 0:00:07]} 40. Rxe2 {[%clk 0:00:14]}  Qxe2 {[%clk 0:00:08]} 41. c7 {[%clk 0:00:15]}  g3 {[%clk 0:00:08]} 42. c8=Q+ {[%clk 0:00:15]}  Kh7 {[%clk 0:00:08]} 43. Qc2 {[%clk 0:00:11]}  Qe3+ {[%clk 0:00:03]} 44. Kg2 {[%clk 0:00:11]}  e4 {[%clk 0:00:04]} 45. Qg4 {[%clk 0:00:11]}  f5 {[%clk 0:00:03]} 46. Qxg3 {[%clk 0:00:11]}  Qd4 {[%clk 0:00:03]} 47. Qcc7+ {[%clk 0:00:11]}  Kh8 {[%clk 0:00:03]} 48. Qge5+ {[%clk 0:00:11]} 1-0


[Site "https://www.chess.com"]

[Event "Titled Tuesday Blitz August 23 Late 2022"]
[White "Leitao, Rafael"]
[Black "Shimanov, Aleksandr"]
[WhiteFideId "2101246"]
[BlackFideId "4198603"]
[WhiteElo "2609"]
[BlackElo "2605"]
[Result "0-1"]
[Round "03"]
[TimeControl "180+1"]
[Date "2022.08.23"]
[WhiteClock "0:00:12"]
[BlackClock "0:00:13"]

1. c4 {[%clk 0:03:00]}  g6 {[%clk 0:02:59]} 2. g3 {[%clk 0:02:58]}  Bg7 {[%clk 0:02:57]} 3. Bg2 {[%clk 0:02:58]}  Nf6 {[%clk 0:02:57]} 4. Nf3 {[%clk 0:02:58]}  O-O {[%clk 0:02:57]} 5. O-O {[%clk 0:02:55]}  d6 {[%clk 0:02:57]} 6. d4 {[%clk 0:02:53]}  Nc6 {[%clk 0:02:57]} 7. Nc3 {[%clk 0:02:45]}  e5 {[%clk 0:02:56]} 8. dxe5 {[%clk 0:02:38]}  dxe5 {[%clk 0:02:57]} 9. Bg5 {[%clk 0:02:30]}  h6 {[%clk 0:02:57]} 10. Qxd8 {[%clk 0:02:26]}  Rxd8 {[%clk 0:02:58]} 11. Bxf6 {[%clk 0:02:26]}  Bxf6 {[%clk 0:02:59]} 12. Nd5 {[%clk 0:02:26]}  Kg7 {[%clk 0:02:59]} 13. Nxc7 {[%clk 0:02:25]}  Rb8 {[%clk 0:02:50]} 14. Nd5 {[%clk 0:02:18]}  e4 {[%clk 0:02:43]} 15. Nd2 {[%clk 0:02:15]}  e3 {[%clk 0:02:43]} 16. fxe3 {[%clk 0:01:50]}  Bxb2 {[%clk 0:02:43]} 17. Rab1 {[%clk 0:01:50]}  Ba3 {[%clk 0:02:43]} 18. Nb3 {[%clk 0:01:39]}  Ne5 {[%clk 0:02:09]} 19. Nd4 {[%clk 0:01:31]}  Nxc4 {[%clk 0:01:43]} 20. Rfd1 {[%clk 0:01:23]}  Bd7 {[%clk 0:00:56]} 21. Rd3 {[%clk 0:01:19]}  b5 {[%clk 0:00:50]} 22. Kf2 {[%clk 0:01:11]}  a6 {[%clk 0:00:50]} 23. Nc3 {[%clk 0:01:06]}  Bc5 {[%clk 0:00:47]} 24. Nb3 {[%clk 0:00:53]}  Bb6 {[%clk 0:00:44]} 25. Nd5 {[%clk 0:00:52]}  Bf5 {[%clk 0:00:41]} 26. Nxb6 {[%clk 0:00:40]}  Bxd3 {[%clk 0:00:41]} 27. exd3 {[%clk 0:00:41]}  Nxb6 {[%clk 0:00:41]} 28. Nd4 {[%clk 0:00:41]}  Rbc8 {[%clk 0:00:38]} 29. Bb7 {[%clk 0:00:40]}  Rc3 {[%clk 0:00:36]} 30. Bxa6 {[%clk 0:00:38]}  Rxd3 {[%clk 0:00:35]} 31. Bxb5 {[%clk 0:00:39]}  Rd2+ {[%clk 0:00:35]} 32. Be2 {[%clk 0:00:39]}  Nd5 {[%clk 0:00:31]} 33. Rd1 {[%clk 0:00:29]}  Rxa2 {[%clk 0:00:27]} 34. Kf3 {[%clk 0:00:19]}  Rd6 {[%clk 0:00:20]} 35. Rc1 {[%clk 0:00:15]}  Rf6+ {[%clk 0:00:20]} 36. Ke4 {[%clk 0:00:16]}  Nb6 {[%clk 0:00:14]} 37. Rb1 {[%clk 0:00:15]}  Ra8 {[%clk 0:00:12]} 38. Kd3 {[%clk 0:00:15]}  Re8 {[%clk 0:00:12]} 39. Bf3 {[%clk 0:00:12]}  Nd7 {[%clk 0:00:13]} 40. Bc6 {[%clk 0:00:12]}  Ne5+ {[%clk 0:00:13]} 0-1


[Site "https://www.chess.com"]

[Event "Titled Tuesday Blitz August 23 Late 2022"]
[White "Lenderman, Aleksandr"]
[Black "Poltorak, Sebastian"]
[WhiteFideId "2021285"]
[BlackFideId "1199498"]
[WhiteElo "2607"]
[BlackElo "2102"]
[Result "1-0"]
[Round "03"]
[TimeControl "180+1"]
[Date "2022.08.23"]
[WhiteClock "0:00:50"]
[BlackClock "0:00:02"]

1. e4 {[%clk 0:03:00]}  Nc6 {[%clk 0:03:00]} 2. Nf3 {[%clk 0:02:58]}  f5 {[%clk 0:03:00]} 3. exf5 {[%clk 0:02:55]}  d5 {[%clk 0:03:01]} 4. Bb5 {[%clk 0:02:52]}  Bxf5 {[%clk 0:03:00]} 5. O-O {[%clk 0:02:51]}  Qd6 {[%clk 0:03:01]} 6. d4 {[%clk 0:02:52]}  O-O-O {[%clk 0:03:01]} 7. Bxc6 {[%clk 0:02:48]}  Qxc6 {[%clk 0:02:59]} 8. Ne5 {[%clk 0:02:49]}  Qe8 {[%clk 0:02:51]} 9. Re1 {[%clk 0:02:45]}  Nf6 {[%clk 0:02:42]} 10. Bf4 {[%clk 0:02:44]}  e6 {[%clk 0:02:37]} 11. Nd2 {[%clk 0:02:44]}  Bd6 {[%clk 0:02:35]} 12. Ndf3 {[%clk 0:02:44]}  Rf8 {[%clk 0:02:35]} 13. c3 {[%clk 0:02:43]}  h6 {[%clk 0:02:27]} 14. Bg3 {[%clk 0:02:41]}  Ne4 {[%clk 0:02:26]} 15. Nd3 {[%clk 0:02:36]}  Bg4 {[%clk 0:02:17]} 16. Re3 {[%clk 0:02:30]}  Qh5 {[%clk 0:02:04]} 17. Nde1 {[%clk 0:02:19]}  g5 {[%clk 0:01:57]} 18. Qd3 {[%clk 0:02:14]}  Bf4 {[%clk 0:01:46]} 19. Re2 {[%clk 0:02:08]}  Bf5 {[%clk 0:01:36]} 20. Qd1 {[%clk 0:02:06]}  g4 {[%clk 0:01:11]} 21. Ne5 {[%clk 0:02:02]}  Qg5 {[%clk 0:00:52]} 22. Bxf4 {[%clk 0:02:00]}  Qxf4 {[%clk 0:00:51]} 23. Qc1 {[%clk 0:01:59]}  Qxc1 {[%clk 0:00:45]} 24. Rxc1 {[%clk 0:02:00]}  Rde8 {[%clk 0:00:37]} 25. Nc2 {[%clk 0:01:59]}  h5 {[%clk 0:00:36]} 26. Ne3 {[%clk 0:01:57]}  Kd8 {[%clk 0:00:35]} 27. Rf1 {[%clk 0:01:55]}  Bh7 {[%clk 0:00:33]} 28. f3 {[%clk 0:01:53]}  gxf3 {[%clk 0:00:33]} 29. gxf3 {[%clk 0:01:53]}  Ng5 {[%clk 0:00:29]} 30. h4 {[%clk 0:01:47]}  Nh3+ {[%clk 0:00:28]} 31. Kh2 {[%clk 0:01:47]}  Nf4 {[%clk 0:00:29]} 32. Rd2 {[%clk 0:01:47]}  Ke7 {[%clk 0:00:27]} 33. Rg1 {[%clk 0:01:47]}  Rg8 {[%clk 0:00:27]} 34. Rdd1 {[%clk 0:01:44]}  c6 {[%clk 0:00:24]} 35. Rxg8 {[%clk 0:01:38]}  Rxg8 {[%clk 0:00:24]} 36. Rg1 {[%clk 0:01:37]}  Rxg1 {[%clk 0:00:24]} 37. Kxg1 {[%clk 0:01:38]}  Bb1 {[%clk 0:00:22]} 38. a3 {[%clk 0:01:38]}  Ng6 {[%clk 0:00:21]} 39. Nxg6+ {[%clk 0:01:37]}  Bxg6 {[%clk 0:00:21]} 40. Ng2 {[%clk 0:01:29]}  Kf6 {[%clk 0:00:21]} 41. Nf4 {[%clk 0:01:29]}  Bf7 {[%clk 0:00:21]} 42. Nd3 {[%clk 0:01:29]}  Kf5 {[%clk 0:00:18]} 43. Kf2 {[%clk 0:01:29]}  Be8 {[%clk 0:00:15]} 44. Ke3 {[%clk 0:01:30]}  Bd7 {[%clk 0:00:09]} 45. b3 {[%clk 0:01:16]}  b6 {[%clk 0:00:10]} 46. c4 {[%clk 0:01:06]}  Be8 {[%clk 0:00:07]} 47. c5 {[%clk 0:01:06]}  b5 {[%clk 0:00:05]} 48. Ne5 {[%clk 0:00:53]}  a5 {[%clk 0:00:04]} 49. Ke2 {[%clk 0:00:51]}  Kf4 {[%clk 0:00:04]} 50. Kf2 {[%clk 0:00:51]}  Kf5 {[%clk 0:00:04]} 51. Ke3 {[%clk 0:00:52]}  Kf6 {[%clk 0:00:03]} 52. Kf4 {[%clk 0:00:52]}  Ke7 {[%clk 0:00:01]} 53. Kg5 {[%clk 0:00:51]}  Bf7 {[%clk 0:00:02]} 54. Nxc6+ {[%clk 0:00:50]} 1-0


[Site "https://www.chess.com"]

[Event "Titled Tuesday Blitz August 23 Late 2022"]
[White "Martinez Alcantara, Jose Eduardo"]
[Black "Ovchinnikov, Vsevolod"]
[WhiteFideId "3805662"]
[BlackFideId "24176842"]
[WhiteElo "2703"]
[BlackElo "2376"]
[Result "1-0"]
[Round "03"]
[TimeControl "180+1"]
[Date "2022.08.23"]
[WhiteClock "0:01:35"]
[BlackClock "0:00:05"]

1. e4 {[%clk 0:03:00]}  g6 {[%clk 0:02:59]} 2. d4 {[%clk 0:03:00]}  Bg7 {[%clk 0:03:00]} 3. c3 {[%clk 0:03:01]}  d6 {[%clk 0:03:00]} 4. Bd3 {[%clk 0:03:02]}  Nf6 {[%clk 0:03:01]} 5. f4 {[%clk 0:03:02]}  O-O {[%clk 0:03:02]} 6. Nf3 {[%clk 0:03:03]}  Bg4 {[%clk 0:03:01]} 7. Nbd2 {[%clk 0:03:02]}  c5 {[%clk 0:03:01]} 8. dxc5 {[%clk 0:03:00]}  dxc5 {[%clk 0:03:00]} 9. Qe2 {[%clk 0:03:00]}  Nc6 {[%clk 0:02:58]} 10. e5 {[%clk 0:02:57]}  Nd5 {[%clk 0:02:56]} 11. Ne4 {[%clk 0:02:57]}  b6 {[%clk 0:02:42]} 12. O-O {[%clk 0:02:52]}  Qc7 {[%clk 0:02:19]} 13. Nf2 {[%clk 0:02:46]}  Bxf3 {[%clk 0:01:59]} 14. Qxf3 {[%clk 0:02:46]}  Rad8 {[%clk 0:01:59]} 15. Be4 {[%clk 0:02:31]}  e6 {[%clk 0:01:58]} 16. Qh3 {[%clk 0:02:18]}  Qd7 {[%clk 0:01:02]} 17. Bd2 {[%clk 0:02:12]}  f5 {[%clk 0:00:58]} 18. exf6 {[%clk 0:02:07]}  Nxf6 {[%clk 0:00:57]} 19. Rad1 {[%clk 0:02:04]}  Nxe4 {[%clk 0:00:40]} 20. Nxe4 {[%clk 0:02:05]}  h6 {[%clk 0:00:40]} 21. Qg4 {[%clk 0:02:01]}  Qf7 {[%clk 0:00:39]} 22. h3 {[%clk 0:01:53]}  Rd3 {[%clk 0:00:30]} 23. Nf2 {[%clk 0:01:50]}  Rd5 {[%clk 0:00:29]} 24. Bc1 {[%clk 0:01:47]}  Rfd8 {[%clk 0:00:28]} 25. Rde1 {[%clk 0:01:47]}  Rf5 {[%clk 0:00:23]} 26. Qe2 {[%clk 0:01:47]}  Rd6 {[%clk 0:00:21]} 27. Ne4 {[%clk 0:01:47]}  Rd7 {[%clk 0:00:21]} 28. g4 {[%clk 0:01:47]}  Rfd5 {[%clk 0:00:22]} 29. Ng3 {[%clk 0:01:46]}  Nd8 {[%clk 0:00:19]} 30. Rf3 {[%clk 0:01:44]}  Qf8 {[%clk 0:00:16]} 31. Ref1 {[%clk 0:01:45]}  Rf7 {[%clk 0:00:15]} 32. Qe4 {[%clk 0:01:44]}  Kh7 {[%clk 0:00:13]} 33. h4 {[%clk 0:01:44]}  Rf6 {[%clk 0:00:07]} 34. h5 {[%clk 0:01:43]}  Qf7 {[%clk 0:00:06]} 35. g5 {[%clk 0:01:41]}  hxg5 {[%clk 0:00:03]} 36. fxg5 {[%clk 0:01:42]}  Rxf3 {[%clk 0:00:03]} 37. Rxf3 {[%clk 0:01:43]}  Qe8 {[%clk 0:00:04]} 38. Kg2 {[%clk 0:01:40]}  Re5 {[%clk 0:00:03]} 39. Qh4 {[%clk 0:01:38]}  Kg8 {[%clk 0:00:03]} 40. h6 {[%clk 0:01:38]}  Bf8 {[%clk 0:00:02]} 41. Bf4 {[%clk 0:01:33]}  Rd5 {[%clk 0:00:02]} 42. c4 {[%clk 0:01:34]}  Rd4 {[%clk 0:00:02]} 43. h7+ {[%clk 0:01:34]}  Kh8 {[%clk 0:00:03]} 44. Be5+ {[%clk 0:01:35]}  Bg7 {[%clk 0:00:03]} 45. Bxg7+ {[%clk 0:01:34]}  Kxg7 {[%clk 0:00:04]} 46. Qh6+ {[%clk 0:01:35]}  Kh8 {[%clk 0:00:05]} 47. Rf8+ {[%clk 0:01:34]}  Qxf8 {[%clk 0:00:05]} 48. Qxf8+ {[%clk 0:01:35]} 1-0


[Site "https://www.chess.com"]